bitfinex/quotes_ETHUSD_20220218
["timestamp","ask_amount","ask_price","bid_price","bid_amount"]
[1645207198045,0.00478842,2788.2,2788.0,0.02100964]
[1645207198244,0.00239421,2788.2,2788.0,0.02100964]
[1645207198449,12.72476054,2788.1,2788.0,0.02100964]
[1645207198647,11.1092,2788.1,2788.0,0.02100964]
[1645207198847,12.1092,2788.1,2787.9,0.00308113]
[1645207199047,0.3,2788.0,2787.9,0.00308113]
[1645207199249,12.4092,2788.0,2787.9,0.00308113]
[1645207199447,12.72562,2787.7,2786.8,0.00454683]
[1645207199648,0.89784,2787.3,2786.8,0.00454683]
[1645207200651,1.35064185,2787.8,2786.7,11.0]
[1645207200850,1.8008558,2788.0,2786.8,0.5962]
[1645207200851,1.35064185,2788.0,2786.8,0.5962]
[1645207201305,1.37833141,2788.1,2786.8,0.5962]
[1645207201496,1.35064185,2788.0,2786.8,0.5962]
[1645207201695,1.35064185,2787.9,2787.7,0.65580408]
[1645207202297,1.35064185,2788.0,2787.7,0.65580408]
[1645207202697,0.02768981,2788.1,2787.7,0.95580408]
[1645207202698,0.00785217,2787.8,2787.7,0.95580408]
[1645207203096,0.02768981,2788.1,2787.7,0.95580408]
[1645207203097,0.02769011,2788.1,2787.7,0.95580408]
[1645207203298,1.35064185,2788.7,2787.9,5.0]
[1645207203499,1.35064185,2788.7,2788.0,0.417]
[1645207203699,1.35064185,2788.7,2788.0,1.5962]
[1645207203897,0.00561031,2789.1,2788.1,0.89681]
[1645207203898,1.35064185,2788.9,2788.1,0.89681]
[1645207204097,1.35064185,2788.9,2788.3,0.89685]
[1645207204098,0.00785217,2788.4,2788.3,0.89685]
[1645207204298,1.35064185,2789.0,2788.3,1.33220732]
[1645207204498,1.35625216,2789.1,2788.4,0.64959182]
[1645207204699,1.35064185,2789.3,2788.5,0.417]
[1645207204898,0.1792,2790.1,2788.5,0.417]
[1645207204899,0.00561031,2789.1,2788.6,0.8966972]
[1645207205156,1.35064185,2789.1,2788.6,1.1966972]
[1645207205356,1.35625216,2789.2,2788.6,0.3]
[1645207205555,0.00785217,2788.9,2788.6,0.3]
[1645207205755,0.00785217,2788.9,2788.5,1.7933944]
[1645207205957,1.35064185,2788.9,2788.4,2.1676]
[1645207206156,1.35064185,2788.9,2787.9,2.1728]
[1645207206157,1.35064185,2788.8,2787.9,2.1728]
[1645207206362,1.35064185,2788.8,2788.1,0.897178]
[1645207206363,1.35064185,2788.7,2788.1,0.897178]
[1645207206557,0.1792,2788.8,2788.1,0.897178]
[1645207206760,1.35064185,2788.9,2788.1,0.897178]
[1645207207057,1.35064185,2788.9,2788.4,0.55591114]
[1645207207257,0.00785217,2788.5,2788.4,0.55591114]
[1645207207457,0.1792,2789.2,2788.4,0.55591114]
[1645207207458,1.35625216,2788.9,2788.4,0.55591114]
[1645207207658,0.00260802,2788.6,2788.4,0.55591114]
[1645207208064,0.00260802,2788.6,2788.4,0.85591114]
[1645207208262,0.00260802,2788.6,2788.5,1.79352]
[1645207208460,0.00260802,2788.6,2788.5,2.21052]
[1645207208660,0.01046019,2788.6,2788.5,4.1075165]
[1645207208901,0.01306821,2788.6,2788.5,4.4075165]
[1645207209099,0.01046019,2788.6,2788.5,5.34032008]
[1645207209900,0.01046019,2788.6,2788.5,5.51952008]
[1645207210098,0.01046019,2788.6,2788.5,3.54680008]
[1645207210300,0.00785217,2788.6,2788.5,3.54680008]
[1645207211601,0.00785217,2788.6,2788.5,9.74361008]
[1645207211800,0.00785217,2788.6,2788.5,9.92281008]
[1645207212848,0.00785217,2788.6,2788.5,4.92281008]
[1645207214051,0.00785217,2788.6,2788.5,4.62281008]
[1645207214257,0.00785217,2788.6,2788.5,1.82980008]
[1645207214455,0.00785217,2788.6,2788.5,0.93280358]
[1645207214852,0.03608979,2788.6,2788.5,0.93280358]
[1645207215456,0.21528979,2788.6,2788.5,0.93280358]
[1645207215852,0.21528979,2788.6,2788.5,0.79580383]
[1645207216052,0.21528979,2788.6,2788.5,0.46640179]
[1645207216323,1.56593164,2788.6,2788.5,0.79580383]
[1645207216505,1.56593164,2788.6,2788.5,0.71536495]
[1645207216706,1.56593164,2788.6,2787.4,2.0305]
[1645207216707,16.93,2788.5,2787.4,2.0305]
[1645207216909,10.93,2788.3,2787.1,1.79942437]
[1645207217105,10.93,2788.1,2787.1,0.00459187]
[1645207217308,0.00785217,2787.9,2787.1,0.00459187]
[1645207217506,0.89764,2787.5,2787.1,0.00459187]
[1645207217704,0.1792,2787.5,2787.1,0.00459187]
[1645207218507,1.79521,2787.6,2786.8,0.71583638]
[1645207218708,0.00785217,2787.2,2786.8,0.71583638]
[1645207218909,0.1792,2787.6,2786.8,0.71583638]
[1645207219308,2.83065094,2787.6,2786.8,0.00114811]
[1645207219515,1.35145094,2787.3,2786.8,0.00114811]
[1645207219710,11.1094,2787.2,2786.8,0.00216072]
[1645207219910,11.1094,2787.2,2786.8,0.00101261]
[1645207220152,10.93,2787.0,2786.8,0.00101261]
[1645207220352,12.74704195,2786.9,2786.8,0.00101261]
[1645207220754,14.54291195,2786.9,2786.8,0.00101261]
[1645207221156,2.71494195,2786.9,2786.8,0.00101262]
[1645207221755,2.72279412,2786.9,2786.8,0.00101262]
[1645207222157,13.65279412,2786.9,2786.7,0.00101264]
[1645207222356,10.93,2786.8,2786.7,0.00101264]
[1645207222756,12.23,2786.8,2786.7,0.00101264]
[1645207222957,12.4094,2786.8,2786.7,0.00101264]
[1645207223355,12.41725217,2786.8,2786.6,0.00116156]
[1645207223557,13.72599,2786.7,2786.6,0.00116156]
[1645207223811,15.52192,2786.7,2786.6,0.00116156]
[1645207224599,15.52192,2786.7,2786.5,0.0011616]
[1645207225799,14.62396,2786.7,2786.5,0.00116162]
[1645207226000,11.82806,2786.6,2786.5,0.00116162]
[1645207226203,12.12806,2786.6,2786.5,0.00116162]
[1645207226401,13.13591217,2786.6,2786.5,0.00116162]
[1645207227002,11.82804,2786.5,2786.4,0.00114019]
[1645207227202,12.72608,2786.5,2786.4,0.00114019]
[1645207227648,17.22608,2786.5,2786.4,0.00114019]
[1645207227848,17.40548,2786.5,2786.4,0.00114019]
[1645207228049,17.41333217,2786.5,2786.4,4.019e-05]
[1645207228251,0.89821,2786.4,2786.3,0.00114023]
[1645207228449,17.34366127,2786.4,2786.3,0.00114023]
[1645207228848,17.20791912,2786.4,2786.3,0.00114023]
[1645207229049,17.34366127,2786.4,2786.3,0.00114023]
[1645207229249,17.50791912,2786.4,2786.3,0.00114023]
[1645207229450,10.93,2785.9,2785.0,0.00341719]
[1645207229653,10.93,2785.7,2785.0,0.00341719]
[1645207229853,11.23,2785.7,2785.0,0.00341719]
[1645207230054,10.93,2785.5,2785.0,0.00341719]
[1645207230451,0.57152238,2785.4,2785.0,0.00341719]
[1645207230654,1.46989238,2785.4,2785.2,0.00114119]
[1645207230855,0.89836,2785.5,2785.2,0.00114119]
[1645207231054,1.0,2785.6,2785.2,0.00114119]
[1645207231311,0.3,2785.7,2785.2,0.00114119]
[1645207231702,0.89824,2785.7,2785.2,0.00114119]
[1645207231903,11.56156189,2785.6,2785.2,0.00114119]
[1645207232202,1.79648,2785.7,2785.2,0.00114119]
[1645207232406,0.17427311,2786.3,2785.2,0.00114119]
[1645207232407,0.1794,2786.0,2785.2,0.00114119]
[1645207232608,0.05530895,2786.6,2785.2,0.00114119]
[1645207232609,0.00785217,2785.4,2785.2,0.00114119]
[1645207232805,0.05530895,2786.6,2785.2,0.89923329]
[1645207233004,11.88320895,2786.6,2785.3,0.00455834]
[1645207233204,0.95320895,2786.6,2785.3,0.30455834]
[1645207233405,0.61111673,2786.5,2785.6,0.68263042]
[1645207233605,4.11111673,2786.5,2785.4,0.00341719]
[1645207233806,10.93,2786.4,2785.3,0.00114115]
[1645207234005,0.8981,2786.1,2785.3,0.00455834]
[1645207234204,0.90596217,2785.9,2785.5,0.00456383]
[1645207234405,0.89811,2785.9,2785.5,0.00456383]
[1645207234606,0.50411225,2785.7,2785.5,0.00456383]
[1645207234808,11.43411225,2785.7,2785.5,0.00456383]
[1645207235050,14.43,2785.6,2785.5,0.00456383]
[1645207235251,14.43,2785.6,2785.5,0.00376383]
[1645207235449,14.43,2785.6,2785.5,0.0049048]
[1645207235450,11.93,2785.6,2785.5,0.0049048]
[1645207235650,11.93,2785.6,2785.5,0.00114097]
[1645207235651,18.13335217,2785.6,2785.5,0.00114097]
[1645207235851,18.13335217,2785.6,2785.0,0.00456457]
[1645207235852,10.93,2785.4,2785.0,0.00456457]
[1645207236054,10.93,2785.2,2785.0,0.00456457]
[1645207236252,12.90643,2785.1,2785.0,0.00456457]
[1645207236450,13.90643,2785.1,2785.0,0.00456457]
[1645207236849,0.56582708,2784.5,2784.0,0.00341719]
[1645207237753,0.56582708,2784.5,2784.1,0.00113954]
[1645207238150,0.89851,2784.4,2784.1,0.00113954]
[1645207238803,0.90636217,2784.4,2784.1,0.00113954]
[1645207239197,0.89851,2784.4,2784.1,0.00113954]
[1645207240205,0.00785217,2784.2,2784.1,0.00113954]
[1645207241606,0.89876,2784.1,2784.0,0.00107354]
[1645207241907,0.8987,2784.3,2784.0,0.00107354]
[1645207242309,0.64113905,2784.1,2784.0,0.00107354]
[1645207242851,1.53990905,2784.1,2783.9,0.00107358]
[1645207243056,10.93,2784.0,2783.9,0.00107358]
[1645207243451,1.71930905,2784.1,2783.9,0.00107358]
[1645207243651,0.90663217,2784.0,2783.9,0.00107358]
[1645207243857,0.90663217,2784.0,2783.8,0.00107362]
[1645207243858,0.00785217,2784.0,2783.8,0.00107362]
[1645207244052,1.79694,2784.8,2783.8,0.00107362]
[1645207244254,2.09694,2784.8,2783.8,0.00107362]
[1645207244453,2.09694,2784.8,2783.9,0.8985581]
[1645207244454,0.3,2784.8,2783.9,0.8985581]
[1645207244654,0.06181284,2784.3,2784.0,0.00341719]
[1645207244856,0.06181284,2784.3,2783.9,0.8985581]
[1645207245053,0.06181284,2784.3,2784.2,0.00114657]
[1645207246301,0.06181284,2784.3,2784.1,0.00114659]
[1645207246507,0.24121284,2784.3,2784.1,0.00114659]
[1645207246906,0.89875,2784.2,2784.1,0.00114659]
[1645207247302,1.19875,2784.2,2784.1,0.00114659]
[1645207247507,1.19875,2784.2,2784.1,0.00114661]
[1645207248106,1.20660217,2784.2,2784.1,0.00114661]
[1645207248706,1.20660217,2784.2,2784.0,0.00113593]
[1645207249105,10.93,2784.1,2784.0,0.00113593]
[1645207249407,11.93,2784.1,2784.0,0.00113593]
[1645207249607,11.93785217,2784.1,2784.0,0.00113593]
[1645207249808,12.4974343,2784.1,2784.0,0.00113593]
[1645207250066,12.4974343,2784.1,2783.4,0.00341719]
[1645207250067,10.93,2783.5,2782.4,0.0105996]
[1645207250266,11.23,2783.5,2782.4,0.0105996]
[1645207250466,10.93,2783.3,2782.4,0.0105996]
[1645207250665,0.1796,2783.2,2782.4,0.0105996]
[1645207250871,1.1796,2783.2,2782.4,0.0105996]
[1645207251068,0.63361624,2783.2,2782.4,1.8084643]
[1645207251266,0.89894,2783.4,2782.4,1.8084643]
[1645207251267,0.00785217,2782.8,2782.4,1.8084643]
[1645207251871,0.00785217,2782.8,2782.5,0.8989208]
[1645207252067,0.89895,2783.4,2782.8,0.0132302]
[1645207252271,0.70571064,2783.2,2782.8,0.0132302]
[1645207253068,2.69717,2783.1,2782.8,0.0132302]
[1645207253268,0.3,2783.0,2782.8,0.0132302]
[1645207253472,0.3,2783.0,2782.9,0.00112384]
[1645207254103,2.69717,2783.1,2783.0,1.7]
[1645207254702,2.69717,2783.1,2782.8,0.01435406]
[1645207254703,5.19717,2783.1,2782.8,0.01435406]
[1645207254907,1.1796,2783.0,2782.8,0.01435406]
[1645207255107,1.4796,2783.0,2782.8,0.01435406]
[1645207255305,10.93,2782.9,2782.8,0.01435406]
[1645207255506,11.1096,2782.9,2782.8,0.01435406]
[1645207255809,1.1796,2782.9,2782.8,0.01435406]
[1645207256009,1.1796,2782.9,2782.8,0.01546554]
[1645207256208,0.89951,2782.6,2782.4,0.0105996]
[1645207256406,11.82942,2782.5,2782.4,0.0105996]
[1645207256609,11.82942,2782.5,2780.8,1.1994]
[1645207256610,12.72602,2782.5,2780.8,1.1994]
[1645207256906,10.93,2782.1,2780.8,1.1994]
[1645207257108,0.51683828,2781.7,2780.9,0.52322606]
[1645207257310,0.89948,2781.6,2780.7,0.1796]
[1645207257547,3.21523828,2781.7,2780.4,0.5]
[1645207257548,13.62878,2781.5,2780.4,0.5]
[1645207257747,2.09932,2781.5,2780.4,0.45]
[1645207258148,1.79945,2781.3,2780.4,0.45]
[1645207258350,0.63359362,2780.8,2780.4,0.45]
[1645207258553,0.8998,2780.7,2780.4,0.45]
[1645207258848,1.1998,2780.7,2780.4,0.45]
[1645207259450,2.69939,2780.6,2780.4,0.45]
[1645207259850,1.79954,2780.8,2780.4,0.45]
[1645207260050,1.79954,2780.8,2780.6,0.68789942]
[1645207260351,1.79954,2780.8,2780.4,0.45]
[1645207260552,2.69889,2781.5,2780.4,0.45]
[1645207260554,0.89945,2781.0,2780.4,0.45]
[1645207260750,0.89945,2781.0,2780.6,0.8993862]
[1645207260952,1.79898,2781.0,2780.5,0.3]
[1645207261410,0.89945,2781.0,2780.5,0.3]
[1645207261705,0.89945,2781.0,2780.8,0.6121597]
[1645207261904,2.69819,2781.4,2780.8,0.6121597]
[1645207262110,0.89937,2781.3,2780.8,0.6121597]
[1645207262306,0.1797,2782.1,2780.8,0.9121597]
[1645207262508,0.00244389,2782.7,2781.0,5.0]
[1645207262509,0.1797,2782.6,2781.0,5.0]
[1645207262710,0.1797,2782.6,2781.1,0.5967]
[1645207262907,1.79832,2782.3,2781.1,0.5967]
[1645207263106,0.89917,2782.2,2781.3,0.00128485]
[1645207263309,0.89916,2782.0,2781.4,0.8991971]
[1645207263907,0.1797,2782.6,2781.5,0.54680839]
[1645207264109,0.00244389,2782.7,2781.6,0.417]
[1645207264110,1.80053389,2782.7,2781.6,0.417]
[1645207264307,2.69956389,2782.7,2781.6,0.41806741]
[1645207264712,2.69956389,2782.7,2781.8,0.8990214]
[1645207264713,1.80053389,2782.7,2781.8,0.8990214]
[1645207264908,0.70188837,2782.4,2781.6,0.00106741]
[1645207265154,2.50045837,2782.4,2781.6,0.00106741]
[1645207265353,1.07897,2782.3,2781.6,0.00106741]
[1645207265554,1.07897,2782.3,2782.1,0.0010672]
[1645207265954,15.32937,2782.2,2782.1,0.0010672]
[1645207266258,15.80907,2782.2,2782.1,6.72e-05]
[1645207266557,0.89971,2782.0,2781.6,0.00426961]
[1645207266755,0.4797,2781.9,2781.6,0.00426961]
[1645207266958,0.89955,2781.8,2781.6,0.00426961]
[1645207267354,0.63171945,2781.7,2781.6,0.00426961]
[1645207267956,0.63171945,2781.7,2781.1,0.00132591]
[1645207268157,0.89943,2781.5,2781.1,0.00132591]
[1645207268557,1.79888,2781.7,2781.1,0.90066271]
[1645207268813,0.8993,2782.1,2781.1,1.20066271]
[1645207269001,0.1797,2782.4,2781.1,1.20066271]
[1645207269202,0.89912,2782.5,2782.2,0.66328615]
[1645207269402,0.00244389,2782.7,2782.2,0.96328615]
[1645207270403,0.90147389,2782.7,2782.0,1.79900091]
[1645207270604,0.89912,2782.6,2782.0,0.00110441]
[1645207271209,1.80050389,2782.7,2782.0,0.00110441]
[1645207271513,0.00244389,2782.7,2782.0,0.00110441]
[1645207272103,0.00244389,2782.7,2782.2,0.61176517]
[1645207272305,0.00244389,2782.7,2782.3,0.8989721]
[1645207272553,0.00244389,2782.7,2782.2,0.91176517]
[1645207272751,0.00244389,2782.7,2782.3,0.417]
[1645207273652,0.00244389,2782.7,2782.6,5.0]
[1645207273653,4.389e-05,2782.7,2782.6,5.0]
[1645207273854,4.389e-05,2782.7,2782.6,17.37252465]
[1645207274056,1.116e-05,2783.1,2782.9,0.0008]
[1645207274253,3.5,2784.6,2783.0,5.5966]
[1645207274453,0.6165674,2785.1,2784.3,0.51350855]
[1645207274654,0.6165674,2785.1,2783.1,3.2858]
[1645207274655,0.89839,2784.6,2783.8,0.417]
[1645207274857,0.89839,2784.6,2783.4,0.417]
[1645207275054,2.87493,2785.0,2783.4,0.417]
[1645207275055,0.1794,2784.5,2783.4,0.3]
[1645207275259,2.86459091,2785.0,2783.4,5.717]
[1645207275260,3.6796,2784.9,2783.4,5.717]
[1645207275456,0.6165674,2785.1,2783.5,0.1794]
[1645207275654,0.89839,2785.0,2783.6,1.7968159]
[1645207275859,0.89832,2784.8,2784.3,0.66712433]
[1645207276055,0.89832,2784.8,2784.2,1.7965429]
[1645207277103,0.89832,2784.8,2784.2,2.39536831]
[1645207278307,0.89836,2784.7,2784.2,2.39536831]
[1645207278508,0.89836,2784.7,2784.2,1.7965429]
[1645207278710,0.3,2784.6,2784.2,1.7965429]
[1645207279009,0.30255697,2784.6,2784.2,1.7965429]
[1645207279211,0.02763203,2784.4,2784.2,1.7965429]
[1645207279407,0.05591404,2784.4,2784.2,1.7965429]
[1645207280048,0.0584957,2784.4,2784.2,1.7965429]
[1645207280250,0.27315126,2784.1,2783.9,1.7967592]
[1645207281149,0.27315126,2784.1,2783.9,2.695091]
[1645207281351,0.27573296,2784.1,2783.9,2.695091]
[1645207281552,0.27573296,2784.1,2783.9,0.8983318]
[1645207281755,0.27573296,2784.1,2783.7,0.65064808]
[1645207282150,1.79731,2784.0,2783.7,0.65064808]
[1645207282350,0.8986,2784.0,2783.7,0.65064808]
[1645207282851,0.27315126,2784.1,2783.7,1.54919398]
[1645207283053,0.05626572,2784.5,2783.7,1.54919398]
[1645207283054,0.02836218,2784.5,2783.7,1.54919398]
[1645207283252,0.02836218,2784.5,2783.8,0.417]
[1645207283651,0.00238591,2784.0,2783.8,0.417]
[1645207284120,0.00238591,2784.0,2783.9,0.8982909]
[1645207284314,0.00238591,2784.0,2783.9,1.1982909]
[1645207284511,0.00238591,2784.0,2783.9,0.8982909]
[1645207284711,0.00238591,2784.0,2783.7,0.65064808]
[1645207285009,0.0023859,2784.1,2783.7,0.65064808]
[1645207285409,0.89856,2784.0,2783.7,0.65064808]
[1645207285814,0.89856,2784.0,2783.3,0.00338952]
[1645207286013,0.90094591,2784.0,2783.3,0.00338952]
[1645207286212,0.90094591,2784.0,2782.9,0.8996259]
[1645207286419,4.39877,2783.9,2783.0,0.00338952]
[1645207286614,1.0785,2783.8,2783.0,0.00338952]
[1645207286816,0.89889,2783.6,2782.9,0.60372227]
[1645207287018,1.07849,2783.6,2783.0,0.00338952]
[1645207287213,1.08083396,2783.6,2783.0,0.00338952]
[1645207287412,0.90123396,2783.6,2783.0,0.00338952]
[1645207287654,0.00234396,2783.6,2783.0,0.90218132]
[1645207288053,0.00234396,2783.6,2783.5,0.513735]
[1645207288252,0.30234396,2783.6,2783.5,0.513735]
[1645207288454,0.30234396,2783.6,2782.9,0.0008]
[1645207288455,0.00234503,2783.4,2782.9,0.0008]
[1645207289555,2.69708,2783.3,2782.9,0.0008]
[1645207289755,2.99942505,2783.3,2782.9,0.0008]
[1645207289954,3.17902505,2783.3,2782.9,0.0008]
[1645207290152,1.38095505,2783.3,2782.9,0.0008]
[1645207290352,2.38095505,2783.3,2782.9,0.0008]
[1645207290555,10.93,2783.1,2782.9,0.0008]
[1645207290757,16.44325559,2783.0,2782.9,0.0008]
[1645207290957,17.44325559,2783.0,2782.9,0.0008]
[1645207291155,17.74325559,2783.0,2782.9,0.0008]
[1645207291436,17.74325559,2783.0,2782.3,0.00338952]
[1645207291437,10.93,2782.8,2782.3,0.00338952]
[1645207291624,0.89947,2782.6,2782.3,0.00338952]
[1645207291823,1.9784743,2782.5,2782.2,0.0045209]
[1645207292226,0.3,2782.4,2781.3,0.00338952]
[1645207292422,0.1797,2782.3,2781.3,0.00338952]
[1645207292624,0.89937,2782.2,2781.5,0.56678082]
[1645207292825,1.89937,2782.2,2781.6,0.00338952]
[1645207293025,0.89941,2782.0,2781.6,0.00338952]
[1645207293624,0.89932,2781.9,2781.6,0.00338952]
[1645207293825,0.89932,2781.9,2781.5,0.56678082]
[1645207294326,2.69819,2781.8,2781.5,0.56678082]
[1645207294526,2.69819,2781.8,2781.6,0.001292]
[1645207294729,4.49709,2781.8,2781.6,0.001292]
[1645207295757,4.49709,2781.8,2781.6,0.00129202]
[1645207295955,2.6983,2781.8,2781.6,0.00129202]
[1645207296160,0.89918,2782.0,2781.6,0.00129202]
[1645207296458,1.79836,2782.0,2781.6,0.00129202]
[1645207297263,1.79861,2781.9,2781.6,0.00129202]
[1645207297459,3.59732,2781.9,2781.6,0.00129202]
[1645207298058,3.59732,2781.9,2781.6,0.001292]
[1645207298658,1.79894,2781.8,2781.6,0.001292]
[1645207298915,3.59757,2781.8,2781.6,0.001292]
[1645207299219,1.79863,2781.8,2781.6,0.00237071]
[1645207299414,1.79863,2781.8,2781.6,0.00107871]
[1645207299819,0.07999127,2781.7,2781.6,0.02221602]
[1645207300418,0.07999127,2781.7,2781.6,0.02329475]
[1645207300619,0.07999127,2781.7,2781.6,0.02221604]
[1645207301418,0.72828104,2781.7,2781.6,0.02221604]
[1645207301621,0.72828104,2781.7,2781.6,0.02113731]
[1645207302121,0.07999127,2781.7,2781.6,0.02113731]
[1645207303157,15.80999127,2781.7,2781.6,0.02113731]
[1645207303352,18.68914127,2781.7,2781.5,0.00110975]
[1645207303651,18.68914127,2781.7,2781.1,0.00443966]
[1645207303652,10.93,2781.4,2781.1,0.00443966]
[1645207303851,1.1797,2781.3,2781.1,0.00443966]
[1645207304052,12.1097,2781.3,2781.1,0.00443966]
[1645207304352,0.7049653,2781.2,2781.1,0.00443966]
[1645207305153,10.93,2781.0,2779.4,0.0422993]
[1645207305355,0.8999366,2780.6,2779.4,0.0422993]
[1645207305555,10.93,2780.3,2779.4,0.0422993]
[1645207305755,0.1797,2780.2,2779.4,0.0422993]
[1645207306157,1.43364799,2780.0,2779.4,0.0422993]
[1645207306417,11.83038,2779.8,2778.5,1.8685507]
[1645207306614,0.1799,2779.7,2778.5,1.8685507]
[1645207306815,10.93,2779.6,2778.5,1.7185507]
[1645207307013,0.1799,2779.5,2778.5,1.7185507]
[1645207307213,1.1799,2779.5,2778.5,1.7185507]
[1645207307412,0.59929676,2779.3,2778.5,2.2350183]
[1645207307617,0.90034,2779.1,2778.5,2.2350183]
[1645207308213,1.20034,2779.1,2778.5,1.7185507]
[1645207308414,11.23,2779.1,2778.5,1.7185507]
[1645207308613,12.23,2779.1,2778.5,1.7185507]
[1645207308818,12.7307024,2779.0,2778.5,1.7185507]
[1645207309318,2.7010424,2779.0,2778.5,1.7185507]
[1645207309517,1.80098,2778.7,2778.5,1.7185507]
[1645207309716,2.70149,2778.7,2778.5,1.7185507]
[1645207309917,0.3,2778.6,2778.5,1.7185507]
[1645207310360,5.0,2778.5,2778.2,0.00511881]
[1645207310560,10.93,2778.4,2778.2,0.00511881]
[1645207310759,12.71444532,2778.3,2778.2,0.00511881]
[1645207310962,12.71444532,2778.3,2777.9,0.0143349]
[1645207310963,10.93,2778.1,2777.9,0.0143349]
[1645207311163,10.93,2778.1,2777.6,0.0058936]
[1645207311164,5.5,2777.9,2777.6,0.0058936]
[1645207311361,10.93,2777.4,2776.5,0.52497956]
[1645207311562,12.91216,2777.4,2776.5,0.46450966]
[1645207311762,12.91216,2777.4,2776.8,0.04717915]
[1645207311763,1.3,2777.3,2776.8,0.04717915]
[1645207311965,0.90104,2777.2,2776.8,0.04717915]
[1645207312764,1.80201,2777.2,2776.8,0.04717915]
[1645207312961,0.1799,2777.7,2776.9,0.71510791]
[1645207313160,1.98141,2777.9,2776.9,0.71510791]
[1645207313361,0.90076,2777.6,2777.0,0.0460423]
[1645207314903,0.90085,2777.5,2777.0,0.0460423]
[1645207315104,1.80159,2777.6,2777.2,0.00126738]
[1645207315307,1.80151,2777.9,2777.2,0.00126738]
[1645207315308,0.90067,2777.9,2777.2,0.00126738]
[1645207315503,0.90067,2777.9,2777.3,0.04433703]
[1645207315905,1.80139,2777.9,2777.3,0.04433703]
[1645207316103,1.80139,2777.9,2777.4,0.00126726]
[1645207316303,2.70214,2777.9,2777.4,0.69972298]
[1645207316505,2.70214,2777.9,2777.5,0.04320018]
[1645207316506,0.1799,2777.8,2777.5,0.04320018]
[1645207316706,4.00214,2777.9,2777.5,0.04320018]
[1645207316707,4.18204,2777.9,2777.5,0.04320018]
[1645207317309,5.0829473,2777.9,2777.5,0.04320018]
[1645207317559,5.0829473,2777.9,2777.5,0.0444674]
[1645207317560,0.6159825,2777.7,2777.5,0.0444674]
[1645207317756,0.90085,2777.6,2777.5,0.0444674]
[1645207317958,0.90085,2777.6,2777.5,0.00126722]
[1645207318357,0.90067,2777.9,2777.5,0.00126722]
[1645207318557,0.90067,2777.9,2777.4,0.00126726]
[1645207318758,0.90067,2777.9,2777.6,0.04263176]
[1645207318958,0.90063,2778.2,2777.6,0.04263176]
[1645207319158,0.1799,2778.5,2777.6,0.04263176]
[1645207319560,1.00068416,2778.6,2777.6,0.04263176]
[1645207319760,0.02518815,2778.6,2777.8,0.00105834]
[1645207320062,0.90061,2778.3,2777.8,0.00105834]
[1645207320264,0.90061,2778.3,2777.9,0.04092649]
[1645207320265,1.08051,2778.3,2777.9,0.04092649]
[1645207320465,0.90052,2778.5,2777.9,0.04092649]
[1645207320670,3.96068,2779.3,2777.9,0.04092649]
[1645207320671,1.0,2778.7,2777.9,0.04092649]
[1645207320866,1.80082,2779.1,2777.9,0.04092649]
[1645207321067,0.417,2780.0,2777.9,0.04092649]
[1645207321068,0.1799,2779.0,2777.9,0.45898477]
[1645207321322,0.35793,2779.9,2777.9,0.45898477]
[1645207321323,0.1799,2779.7,2778.0,0.57216016]
[1645207321525,0.35793,2779.9,2778.1,2.0001]
[1645207321526,0.1799,2779.8,2778.1,2.0001]
[1645207321719,11.38544083,2780.3,2778.3,0.9001413]
[1645207321720,0.1799,2780.3,2778.3,0.9001413]
[1645207321920,0.1799,2780.3,2778.4,0.18105022]
[1645207322122,0.89999,2780.3,2778.4,0.18105022]
[1645207322323,0.90003,2780.1,2779.7,0.55568797]
[1645207323319,0.1797,2780.5,2779.7,0.55568797]
[1645207323320,1.07963,2780.5,2779.7,0.55568797]
[1645207323519,0.89993,2780.5,2779.7,0.55568797]
[1645207323920,1.79987,2780.5,2779.3,0.417]
[1645207324123,3.50242736,2780.7,2778.6,0.1797]
[1645207324124,0.89998,2780.3,2779.0,0.417]
[1645207324322,1.97998,2780.2,2778.6,1.3170546]
[1645207324521,4.40014,2780.1,2778.6,0.417]
[1645207324721,4.40014,2780.1,2778.4,0.00115022]
[1645207324722,0.1797,2780.0,2778.4,0.00115022]
[1645207324921,0.1797,2780.0,2778.8,0.69709]
[1645207324922,0.65667573,2779.6,2778.8,0.69709]
[1645207325154,1.80044,2779.8,2778.8,0.69709]
[1645207325457,0.1799,2779.7,2778.4,0.00115022]
[1645207325661,6.68102,2779.7,2778.4,0.00115022]
[1645207325860,6.68102,2779.7,2778.1,0.00109016]
[1645207325861,0.3,2779.6,2778.1,0.00109016]
[1645207326154,0.90044,2779.2,2778.1,0.00109016]
[1645207326357,0.4799,2779.1,2778.1,0.00109016]
[1645207326555,1.38038,2779.1,2778.1,0.00109016]
[1645207326754,0.4799,2779.1,2778.1,0.00109016]
[1645207326956,0.1799,2779.1,2778.1,0.00108505]
[1645207327155,0.3,2779.1,2778.1,0.00108505]
[1645207327353,0.90036,2779.3,2778.1,0.00108505]
[1645207327556,0.1799,2779.2,2778.1,0.00108505]
[1645207327756,1.20039,2779.1,2778.1,0.00108505]
[1645207327955,0.1799,2779.0,2778.1,0.00108505]
[1645207328158,1.57560332,2778.9,2778.1,0.69329824]
[1645207328355,0.1799,2778.8,2778.1,0.69329824]
[1645207329107,0.3,2778.9,2778.1,0.69329824]
[1645207329311,17.39013,2780.0,2778.2,3.5]
[1645207329312,0.1799,2779.4,2778.2,3.5]
[1645207329509,0.02773766,2779.5,2778.9,0.02665226]
[1645207329707,0.02773766,2779.5,2779.4,0.55175185]
[1645207330508,0.02773766,2779.5,2778.9,0.44365226]
[1645207330713,0.02773766,2779.5,2778.9,0.02665226]
[1645207331607,0.02773766,2779.5,2779.2,0.59234331]
[1645207332207,0.02773766,2779.5,2779.0,0.900013]
[1645207332408,0.02773766,2779.5,2778.9,0.02665226]
[1645207332653,0.1799,2779.4,2778.9,0.02665226]
[1645207332853,2.88109,2779.4,2778.9,0.02665226]
[1645207333256,1.3,2779.3,2778.9,0.02665226]
[1645207333858,0.1799,2779.2,2778.9,0.02665226]
[1645207334056,0.1799,2779.2,2778.9,0.02553946]
[1645207334255,11.1099,2779.2,2778.9,0.02553946]
[1645207334456,11.1099,2779.2,2778.1,0.00108575]
[1645207334656,0.71395178,2778.7,2778.1,0.00108575]
[1645207334858,2.7017,2778.6,2778.1,0.00108575]
[1645207336504,2.7017,2778.6,2778.1,0.0021715]